Cogmind - Beta 9.6 @@@ ROGUE MODE // 2020.07.09 @ 21:17:38 Player: GGOBC-006 Result: Destroyed by Explosive Trap Performance ------------- Evolutions (0) 0 Regions Visited (1) 200 Robots Destroyed (21) 105 Value Destroyed (300) 300 Prototype IDs (2) 40 Alien Tech Used (0) 0 Bonus (0) 0 TOTAL SCORE: 645 Bonus ------- None Cogmind --------- Core Integrity 0/250 Matter 300/300 Energy 158/160 System Corruption 0% Temperature Cool (0) Movement Rolling (80) Location -10/Materials Parts ------- > --- POWER (1) -------- Light Nuclear Core > --- PROPULSION (2) --- Wheel Wheel > --- UTILITY (2) ------ Improved Heat Sink Signal Interpreter > --- WEAPON (2) ------- EM Shotgun EM Shotgun > --- INVENTORY (4) ---- Ion Engine Light Nuclear Core Improved Terrain Scanner Peak State ------------ > --- POWER ------------ Light Nuclear Core > --- PROPULSION ------- Wheel Wheel > --- UTILITY ---------- Improved Heat Sink Signal Interpreter > --- WEAPON ----------- EM Shotgun EM Shotgun > --- INVENTORY -------- Ion Engine Light Nuclear Core Improved Terrain Scanner [Rating: 13] Favorites ----------- Power Ion Engine Engine Ion Engine Power Core Light Nuclear Core Propulsion Wheel Wheel Wheel Flight Unit Flight Unit Utility Improved Terrain Scanner Device Improved Terrain Scanner Storage Small Storage Unit Processor Seismic Analyzer Weapon Small Laser Energy Gun Small Laser Energy Cannon Beam Cannon Ballistic Gun Assault Rifle Build | -11 -10 ------- Run | Scr Mat Slots Evolved . | . . Power . | . . Propulsion . | . . Utility . | . . Weapon . | . . Parts Attached 28 | 13 15 Power 4 | 2 2 Engine 2 | 2 . Core 2 | . 2 Reactor . | . . Propulsion 11 | 5 6 Treads . | . . Leg . | . . Wheel 9 | 5 4 Hover . | . . Flight 2 | . 2 Utility 5 | 3 2 Device 2 | 1 1 Storage 1 | 1 . Processor 2 | 1 1 Hackware . | . . Protection . | . . Artifact . | . . Weapon 8 | 3 5 Energy Gun 5 | 2 3 Energy Cannon 1 | . 1 Ballistic Gun 2 | 1 1 Ballistic Cannon . | . . Launcher . | . . Special Weapon . | . . Impact Weapon . | . . Slashing Weapon . | . . Piercing Weapon . | . . Special Melee Weapon . | . . Unidentified Prototypes . | . . Parts Lost 7 | . 7 Power . | . . Propulsion 3 | . 3 Utility 1 | . 1 Weapon 3 | . 3 Highest Loss Streak 4 | . 4 Average Slot Usage (%) 80 | . 80 Engine 9 | . 9 Core 3 | . 3 Wheel 13 | . 13 Flight 4 | . 4 Device 13 | . 13 Processor 12 | . 12 Energy Gun 16 | . 16 Ballistic Gun 4 | . 4 Naked Turns 9 | . 9 Heaviest Build 12 | 12 12 Greatest Support 32 | 32 20 Greatest Overweight (x) 2 | . 2 Average Overweight (x) . | . . Largest Inventory Capacity 6 | 6 4 Average Capacity 4 | 4 4 Most Carried 5 | 5 4 Average Carried 2 | 2 2 Final Capacity 4 | 4 4 Final Carried 3 | 3 3 Class Distribution -------------------- 73% | Scavenger-Mutant 26% | Mutant Dominant Class ---------------- Scavenger-Mutant | -10/Materials Resources | -11 -10 ----------- Run | Scr Mat Matter Collected 620 | 330 290 Remotely . | . . Salvage Created 615 | 194 421 Parts 55 | 22 33 Haulers Intercepted 2 | . 2 Recyclers Shooed 7 | 1 6 Parts Field Recycled . | . . Retrieved Matter . | . . Parts Self-Destructed . | . . Prevented . | . . Kills | -11 -10 ------- Run | Scr Mat Combat Hostiles Destroyed 6 | . 6 Guns 5 | . 5 AOE 1 | . 1 Classes Destroyed 7 | 3 4 Worker 3 | 2 1 Tunneler 5 | 5 . Hauler 2 | . 2 Recycler 3 | 1 2 Watcher 2 | . 2 Swarmer 3 | . 3 Grunt 3 | . 3 Best Kill Streak 4 | 4 3 Combat Bots Only 2 | . 2 Max Kills in Single Turn 1 | 1 1 Gunslinging . | . . Exploded 1 | . 1 Melee . | . . Uniques/NPCs Destroyed . | . . Combat | -11 -10 -------- Run | Scr Mat Damage Taken 658 | . 658 Core 257 | . 257 Absorbed by Shields . | . . Core Remaining (%) 100 | 100 . Volleys Fired 136 | 20 116 Largest 2 | 2 2 Hottest 90 | 80 90 Shots Fired 205 | 40 165 Gun 200 | 40 160 Cannon 5 | . 5 Launcher . | . . Special . | . . Kinetic 59 | . 59 Thermal 100 | 40 60 Explosive . | . . Electromagnetic 46 | . 46 Robot Hit Streak 10 | 7 10 Robot Miss Streak 5 | 3 5 Penetration Max . | . . Secondary Targets 1 | . 1 Max Gunslinging Chain 1 | . 1 Shots Hit Robots 91 | 24 67 Core Hits 32 | 9 23 Critical Hits . | . . Critical Kills . | . . Critical Parts Destroyed . | . . Melee Attacks . | . . Impact . | . . Slashing . | . . Piercing . | . . Sneak Attacks . | . . Combat Hostiles . | . . Follow-up Attacks . | . . Damage Inflicted 1309 | 268 1041 Guns 976 | 268 708 Cannons 69 | . 69 Explosions 263 | . 263 Melee . | . . Ramming 1 | . 1 Kinetic 280 | . 280 Thermal 830 | 268 562 Explosive 114 | . 114 Electromagnetic 84 | . 84 Impact . | . . Slashing . | . . Piercing . | . . Highest Corruption . | . . Average Corruption . | . . Corruption Purged . | . . Overload Shots . | . . Overflow Damage 96 | . 96 Projectiles 9 | . 9 Explosions 87 | . 87 Melee . | . . Knockbacks . | . . Impact . | . . Kinetic . | . . Secondary . | . . Self-Inflicted Damage . | . . Shots . | . . Rammed 2 | . 2 Targets Rammed 2 | . 2 Kicked . | . . Crushed . | . . Highest Temperature 144 | 126 144 Average Temperature 44 | 42 45 Received Heat Transfer 297 | . 297 Siege Activations . | . . Robots Corrupted . | . . Combat Hostiles . | . . Parts Fried . | . . Impact Corruptions . | . . Robots Melted . | . . Combat Hostiles . | . . Parts Melted 1 | . 1 Heat Transferred 1719 | 625 1094 Parts Sabotaged . | . . Parts Stolen . | . . Parts Stripped . | . . Power Chain Reactions . | . . Missiles Intercepted . | . . Alert | -11 -10 ------- Run | Scr Mat Peak Influence 199 | 40 199 Average Influence 52 | 20 80 Maximum Alert Level . | . . Low Security (%) 100 | 100 100 Level 1 . | . . Level 2 . | . . Level 3 . | . . Level 4 . | . . Level 5 . | . . High Security . | . . Max Security . | . . Squads Dispatched . | . . Investigation . | . . Extermination . | . . Reinforcement . | . . Assault . | . . Garrison . | . . Intercept . | . . Construction Impeded . | . . Haulers Reinforced . | . . Stealth | -11 -10 --------- Run | Scr Mat Distress Signals 1 | . 1 Communications Jammed . | . . Distress Signals . | . . Times Spotted 16 | . 16 Peak Tracking Total 3 | . 3 Tactical Retreats 3 | . 3 Traps | -11 -10 ------- Run | Scr Mat Traps Triggered 1 | . 1 Indirectly . | . . Trap Hack Attempts . | . . Triggered . | . . Disarmed . | . . Reprogrammed . | . . Reused . | . . Traps Extracted . | . . Installed . | . . Triggered . | . . Machines | -11 -10 ---------- Run | Scr Mat Machines Disabled 5 | . 5 Max in Single Turn 2 | . 2 Machines Sabotaged . | . . Garrisons Compromised . | . . Overloaded Fab Kills . | . . Fab Network Shutdowns . | . . Hacking | -11 -10 --------- Run | Scr Mat Machines Accessed 6 | . 6 Terminals 5 | . 5 Fabricators . | . . Repair Stations . | . . Recycling Units 1 | . 1 Scanalyzers . | . . Garrison Access . | . . Total Hacks 18 | . 18 Successful 9 | . 9 Failed 9 | . 9 Catastrophic 2 | . 2 Database Lockouts . | . . Manual . | . . Terminals 17 | . 17 Fabricators . | . . Repair Stations . | . . Recycling Units 1 | . 1 Scanalyzers . | . . Garrison Access . | . . Terminal Hacks 8 | . 8 Prototype ID Bank 1 | . 1 Branch Access Points 1 | . 1 Locate Traps 1 | . 1 Assault Status 1 | . 1 Recall Reinforcements 1 | . 1 Recall Assault 1 | . 1 Hauler Manifests 1 | . 1 Registered Components 1 | . 1 Fabricator Hacks . | . . Repair Station Hacks . | . . Recycling Unit Hacks 1 | . 1 Retrieve Components 1 | . 1 Scanalyzer . | . . Garrison Access Hacks . | . . Unauthorized Hacks . | . . Terminals . | . . Fabricators . | . . Repair Stations . | . . Recycling Units . | . . Scanalyzers . | . . Garrison Access . | . . Data Cores Recovered . | . . Used . | . . Hacking Detections 5 | . 5 Full Trace Events 1 | . 1 Feedback Events . | . . Feedback Blocked . | . . Robot Schematics Acquired . | . . Robots Built . | . . Matter . | . . Time . | . . Total Robot Build Rating . | . . Part Schematics Acquired . | . . Parts Built . | . . Matter . | . . Time . | . . Total Part Build Rating . | . . Parts Repaired . | . . Time . | . . Parts Recycled . | . . Recycled Matter . | . . Retrieved Matter . | . . Retrieved Components 9 | . 9 Parts Scanalyzed . | . . Part Schematics Acquired . | . . Parts Damaged . | . . Bothacking | -11 -10 ------------ Run | Scr Mat Used RIF Installer . | . . Robots Hacked . | . . Non-combat . | . . Combat . | . . Robot Hacks Applied . | . . Relay Couplers Released . | . . Robots Rewired . | . . Allies Hacked . | . . Hacks Repelled . | . . Allies | -11 -10 -------- Run | Scr Mat Total Allies . | . . Largest Group . | . . Highest-Rated Group . | . . Highest-Rated Ally . | . . Total Orders . | . . Ally Attacks . | . . Total Damage . | . . Kills . | . . Allies Corrupted . | . . Allies Melted . | . . Intel | -11 -10 ------- Run | Scr Mat Robot Analysis Total . | . . Derelict Logs Recovered . | . . Drone Launches . | . . Drone Recoveries . | . . Exploration | -11 -10 ------------- Run | Scr Mat Turns Passed 1299 | 589 710 Spaces Moved 611 | 110 501 Core 87 | 9 78 Treads . | . . Legs . | . . Wheels 417 | 101 316 Hover . | . . Flight 107 | . 107 Fastest Speed 37 | 50 37 Average Speed 73 | 82 71 Slowest Speed 150 | 100 150 Overloaded Moves . | . . Propulsion Burnouts . | . . Robots Hopped . | . . Cave-ins Triggered . | . . Exploration Rate (%) 37 | 6 68 Regions Visited 1 Branch Regions . Pre-discovered Areas . | . . Known Exits Taken . | . . Unknown Exits Taken 1 | 1 . Scrap Searched . | . . Spaces Dug . | . . Terrain Destroyed 38 | . 38 Melee . | . . Projectile . | . . AOE 38 | . 38 Actions | -11 -10 --------- Run | Scr Mat Total 1251 | 562 689 Wait 457 | 415 42 Move 610 | 109 501 Hop . | . . Pick Up 6 | 2 4 Fast Attach 17 | 8 9 Attach 5 | . 5 Detach 2 | . 2 Swap 6 | 5 1 Drop 10 | 3 7 Fire 136 | 20 116 Melee . | . . Ram 2 | . 2 Kick . | . . Crush . | . . Escape Stasis . | . . Rewire . | . . Trap . | . . Miscellaneous . | . . Route ------- -11/Scrapyard -10/Materials (discovered 4 exits: [*Mat x2] / *Min x2) History --------- Turn | Location | Event 5 | -11/Scrapyard | Discovered new exit (range 16) 590 | -11/Scrapyard | Entered Materials 591 | -10/Materials | Build established: Scavenger-Mutant 718 | -10/Materials | Identified exit to Mines 969 | -10/Materials | Discovered new exit (range 3) 1031 | -10/Materials | Core integrity fell below 50% 1056 | -10/Materials | Core integrity fell below 20% 1103 | -10/Materials | Lost 4 parts (1n1u2w) 1170 | -10/Materials | Discovered new exit (range 11) 1300 | -10/Materials | Destroyed by Explosive Trap Last Messages --------------- 6x Datajack >>Recall(Reinforcements) Establishing remote squad link... No tasked reinforcement squads found. A-02 Transporter destroyed. K-01 Serf collects debris. Acquired 53 matter. K-01 Serf collects debris. W-16 Scout destroyed. K-01 Serf collects debris. K-01 Serf destroyed. K-01 Serf collects debris. Connecting with Terminal... >>Traps(Locate) Found 12 traps in 2 arrays: 6x Blade Trap 6x Blade Trap Map updated. Triggered Explosive Trap. An explosion rips through the floor. Map ----- +----------------------------------------------------+ | | | | | | | | | | | | | | | | | | | | | | | | | | | | | | | | | | | | | ?????????????????????????????? | | #######??????????????????????? | | # """ #??????????????????????? | | # """ #?????????????######???? | | # """ #????????????# #???? | | # ############?# #???? | | # + #?# """ #???? | | # @########## #?# """ #???? | | # #????????# ### """ #???? | | #######????????# # #???? | | ???????????????# + """ #???? | | ???????????????# # """ #???? | | ???????????????# # """ #???? | | ???????????????# # #???? | | ????????>??????# #/= #???? | | ???????????????# #/= ##+#? | | ???????????????# ######## #? | | ???????????????# #??????# #? | | ??????????????## ##?????# #? | | ??????# #####! #???### ## | | ??????+ ##### | | ??????# T %! | | ??????# ! ///%T | | ??????##+###### !/%/!! | | ??????????????# #########/=* | | ??????????????# #???????## # | | ??????????????# #????????# # | | ??????????????# #????????# # | | ??????????????# ?????????# # | | ??????????????# ?????????# # | | ??????????????# ?????????# # | | ??????????????# ?????????# # | +----------------------------------------------------+ Best States ------------- Heat Dissipation 39 Energy Generation 14 Energy Capacity 250 Matter Stores 300 Matter Capacity 300 Sight Range 16 Terrain Scan Range 16 Terrain Scan Density 60 Evasion (%) 62 Item Schematics ----------------- None Robot Schematics ------------------ None Fabricated ------------ Nothing Alien Tech Used ----------------- None Achievements -------------- None Challenges ------------ None Game ------ Seed StructuralPhaseClaw Manual? 0 Play Time 00:13:31 Cumulative 18.7 hours Start 2020.07.09 @ 21:03:51 End 2020.07.09 @ 21:17:38 Sessions 1 Manual Loads 0 Difficulty Rogue Special Mode None Game No. 12 Rogue 12 Adventurer 0 Explorer 0 Win Type - Total 0 Types 0/0/0/0/0/0/0 Lore% 31 Gallery% 29 Achievement% 23 Wizard Run 0 Options --------- ASCII 0 Keyboard 0 Movement Numpad Keybinds 0 Fullscreen 2 Font 18/TerminusBold Map View 76x50 Tactical HUD 0 Map Filters NONE Filters NONE Steam 1 RUN: c8d6361c-4545-4632-b3bd-f33824cf5aac